[Event "*** Titled Tuesday Blitz"]
[Site "Chess.com"]
[Date "2019.02.05"]
[Round "3"]
[White "GABUZYAN_CHESSMOOD"]
[Black "Astaneh"]
[Result "0-1"]
[WhiteElo "2758"]
[BlackElo "2541"]
[TimeControl "180+2"]
[EndTime "13:37:11 PST"]
[Termination "Astaneh won on time"]

1. e4 {[%clk 0:03:01.9]} 1... e5 {[%clk 0:02:58.3]} 2. Nf3 {[%clk 0:03:02.6]}
2... Nc6 {[%clk 0:02:59.6]} 3. Bb5 {[%clk 0:03:04]} 3... Nf6 {[%clk 0:03:00.5]}
4. O-O {[%clk 0:03:04]} 4... Nxe4 {[%clk 0:03:01.5]} 5. Re1 {[%clk 0:03:05]}
5... Nd6 {[%clk 0:03:02.8]} 6. Nxe5 {[%clk 0:03:03.7]} 6... Nxe5 {[%clk
0:03:04.7]} 7. Rxe5+ {[%clk 0:03:04.2]} 7... Be7 {[%clk 0:03:05.2]} 8. Nc3
{[%clk 0:03:05.2]} 8... Nxb5 {[%clk 0:03:04.3]} 9. Nd5 {[%clk 0:03:04]} 9... d6
{[%clk 0:02:20]} 10. Rxe7+ {[%clk 0:02:57.2]} 10... Kf8 {[%clk 0:02:21.3]} 11.
Qf3 {[%clk 0:02:58.1]} 11... Be6 {[%clk 0:02:22.9]} 12. Rxe6 {[%clk 0:02:58.8]}
12... Nd4 {[%clk 0:02:24.4]} 13. Qc3 {[%clk 0:02:26.7]} 13... Nxe6 {[%clk
0:02:24.9]} 14. b3 {[%clk 0:02:27.8]} 14... c6 {[%clk 0:02:25.3]} 15. Ne3 {[%clk
0:02:26.8]} 15... Qd7 {[%clk 0:02:18.8]} 16. Bb2 {[%clk 0:02:27.7]} 16... f6
{[%clk 0:02:10.2]} 17. Nf5 {[%clk 0:02:26.1]} 17... Nf4 {[%clk 0:02:06.1]} 18.
Ng3 {[%clk 0:02:16.7]} 18... Re8 {[%clk 0:02:06.9]} 19. Qd4 {[%clk 0:02:15.3]}
19... Ne2+ {[%clk 0:02:02]} 20. Nxe2 {[%clk 0:02:16.3]} 20... Rxe2 {[%clk
0:02:03.9]} 21. Kf1 {[%clk 0:02:17.7]} 21... Qe7 {[%clk 0:01:50.5]} 22. Bc3
{[%clk 0:02:09.7]} 22... Kf7 {[%clk 0:01:41.5]} 23. Qc4+ {[%clk 0:02:09.9]}
23... Re6 {[%clk 0:01:42.7]} 24. d3 {[%clk 0:01:44.3]} 24... Re8 {[%clk
0:01:42.6]} 25. a4 {[%clk 0:01:44.4]} 25... d5 {[%clk 0:01:35.7]} 26. Qd4 {[%clk
0:01:44.9]} 26... Re2 {[%clk 0:01:33.9]} 27. Rc1 {[%clk 0:01:44.9]} 27... b6
{[%clk 0:01:26.8]} 28. b4 {[%clk 0:01:45.3]} 28... Qd6 {[%clk 0:01:02.6]} 29. g3
{[%clk 0:01:42.5]} 29... c5 {[%clk 0:00:59.2]} 30. Qg4 {[%clk 0:01:40.7]} 30...
d4 {[%clk 0:01:00.3]} 31. bxc5 {[%clk 0:01:37.9]} 31... bxc5 {[%clk 0:00:59.4]}
32. Ba5 {[%clk 0:01:35.6]} 32... Qd5 {[%clk 0:00:58.7]} 33. Kg1 {[%clk
0:01:13.9]} 33... h5 {[%clk 0:00:59.6]} 34. Qf4 {[%clk 0:01:08.4]} 34... g5
{[%clk 0:00:56.2]} 35. Qc7+ {[%clk 0:01:06.2]} 35... R8e7 {[%clk 0:00:57.6]} 36.
Qc8 {[%clk 0:01:03.7]} 36... Re8 {[%clk 0:00:53.1]} 37. Qh3 {[%clk 0:01:03.6]}
37... g4 {[%clk 0:00:50.4]} 38. Qg2 {[%clk 0:01:04.1]} 38... Qf3 {[%clk
0:00:43.8]} 39. Qxf3 {[%clk 0:00:55.8]} 39... gxf3 {[%clk 0:00:45.2]} 40. h3
{[%clk 0:00:57]} 40... Rb8 {[%clk 0:00:42.5]} 41. c3 {[%clk 0:00:57.8]} 41...
Rbb2 {[%clk 0:00:41.1]} 42. Rf1 {[%clk 0:00:57.8]} 42... Ra2 {[%clk 0:00:35.2]}
43. cxd4 {[%clk 0:00:58.8]} 43... cxd4 {[%clk 0:00:37.1]} 44. g4 {[%clk
0:00:57.5]} 44... hxg4 {[%clk 0:00:38.1]} 45. hxg4 {[%clk 0:00:58.5]} 45... Rxa4
{[%clk 0:00:39.7]} 46. Bc7 {[%clk 0:00:59.9]} 46... Ra3 {[%clk 0:00:38.3]} 47.
Rb1 {[%clk 0:00:59.2]} 47... Rxd3 {[%clk 0:00:38.7]} 48. Ra1 {[%clk 0:00:55.1]}
48... Kg6 {[%clk 0:00:37.6]} 49. Bg3 {[%clk 0:00:55.1]} 49... Re7 {[%clk
0:00:34.3]} 50. Kh2 {[%clk 0:00:55.2]} 50... Rh7+ {[%clk 0:00:31.1]} 51. Kg1
{[%clk 0:00:56]} 51... Kg5 {[%clk 0:00:32.6]} 52. Bh2 {[%clk 0:00:51.2]} 52...
Kxg4 {[%clk 0:00:33.7]} 53. Kh1 {[%clk 0:00:52.7]} 53... Rd2 {[%clk 0:00:32.3]}
54. Rg1+ {[%clk 0:00:53.5]} 54... Kf5 {[%clk 0:00:33.2]} 55. Ra1 {[%clk
0:00:50.2]} 55... Rxf2 {[%clk 0:00:32.8]} 56. Kg1 {[%clk 0:00:51.7]} 56... Rfxh2
{[%clk 0:00:32.9]} 0-1

[Event "*** Titled Tuesday Blitz"]
[Site "Chess.com"]
[Date "2019.02.05"]
[Round "3"]
[White "HindsightIs2700"]
[Black "yuki_chess123"]
[Result "1-0"]
[WhiteElo "2264"]
[BlackElo "1972"]
[TimeControl "180+2"]
[EndTime "13:37:14 PST"]
[Termination "HindsightIs2700 won by resignation"]

1. e4 {[%clk 0:03:01.9]} 1... g6 {[%clk 0:03:00.7]} 2. d4 {[%clk 0:03:02.6]}
2... Bg7 {[%clk 0:03:01.8]} 3. Nf3 {[%clk 0:03:03.9]} 3... c6 {[%clk 0:03:02.2]}
4. h3 {[%clk 0:03:04.1]} 4... d5 {[%clk 0:03:03.1]} 5. e5 {[%clk 0:03:05.3]}
5... b6 {[%clk 0:02:23.6]} 6. c4 {[%clk 0:02:54.8]} 6... Be6 {[%clk 0:02:11]} 7.
cxd5 {[%clk 0:02:54.1]} 7... Bxd5 {[%clk 0:02:10.8]} 8. Be2 {[%clk 0:02:46.9]}
8... e6 {[%clk 0:02:10.2]} 9. O-O {[%clk 0:02:46.6]} 9... Ne7 {[%clk 0:02:10.5]}
10. Nc3 {[%clk 0:02:47.8]} 10... O-O {[%clk 0:02:10.3]} 11. Bg5 {[%clk
0:02:43.8]} 11... Nd7 {[%clk 0:01:52.7]} 12. Qd2 {[%clk 0:02:34.8]} 12... Qe8
{[%clk 0:01:46.6]} 13. Bh6 {[%clk 0:02:27.1]} 13... Bxh6 {[%clk 0:01:34.8]} 14.
Qxh6 {[%clk 0:02:29]} 14... Nf5 {[%clk 0:01:35.6]} 15. Qf4 {[%clk 0:02:28.3]}
15... f6 {[%clk 0:01:33.2]} 16. Nxd5 {[%clk 0:02:19.4]} 16... cxd5 {[%clk
0:01:32.6]} 17. Bb5 {[%clk 0:02:18]} 17... Qe7 {[%clk 0:01:27.8]} 18. Qd2 {[%clk
0:02:06.7]} 18... fxe5 {[%clk 0:01:26.1]} 19. Bxd7 {[%clk 0:02:07.6]} 19... Qxd7
{[%clk 0:01:18.2]} 20. Nxe5 {[%clk 0:02:08.6]} 20... Qe7 {[%clk 0:01:10.8]} 21.
Rfe1 {[%clk 0:02:01.6]} 21... Rac8 {[%clk 0:01:10.6]} 22. Rac1 {[%clk
0:02:02.1]} 22... Nd6 {[%clk 0:01:02.5]} 23. f3 {[%clk 0:01:54]} 23... Nc4
{[%clk 0:00:48.5]} 24. Nxc4 {[%clk 0:01:50.5]} 24... dxc4 {[%clk 0:00:49]} 25.
Qe2 {[%clk 0:01:41.4]} 25... Rfd8 {[%clk 0:00:42.8]} 26. Rxc4 {[%clk 0:01:33.7]}
26... Rxc4 {[%clk 0:00:40.5]} 27. Qxc4 {[%clk 0:01:35.1]} 27... Rd6 {[%clk
0:00:41.2]} 28. d5 {[%clk 0:01:28.2]} 28... exd5 {[%clk 0:00:30.9]} 29. Qc8+
{[%clk 0:01:19.8]} 29... Rd8 {[%clk 0:00:30.1]} 30. Rxe7 {[%clk 0:01:13.8]}
30... Rxc8 {[%clk 0:00:30.9]} 31. Rxa7 {[%clk 0:01:14.8]} 31... Rc1+ {[%clk
0:00:29.9]} 32. Kh2 {[%clk 0:01:15.1]} 32... Rc2 {[%clk 0:00:31.1]} 33. b3
{[%clk 0:01:07.8]} 33... d4 {[%clk 0:00:30.6]} 34. Rd7 {[%clk 0:01:08.6]} 34...
Rd2 {[%clk 0:00:25.2]} 35. a4 {[%clk 0:01:03.9]} 35... g5 {[%clk 0:00:25]} 36.
b4 {[%clk 0:01:02.8]} 36... Ra2 {[%clk 0:00:21]} 37. Rxd4 {[%clk 0:00:57.9]}
37... Rxa4 {[%clk 0:00:21.8]} 38. Kg3 {[%clk 0:00:59]} 38... Kg7 {[%clk
0:00:22.1]} 39. Kg4 {[%clk 0:00:59.8]} 39... h6 {[%clk 0:00:21.1]} 40. Kf5
{[%clk 0:00:58.7]} 40... Ra2 {[%clk 0:00:20.7]} 41. Rd7+ {[%clk 0:00:58.1]}
41... Kf8 {[%clk 0:00:20.4]} 42. g4 {[%clk 0:00:54.8]} 42... Rf2 {[%clk
0:00:20]} 43. Ke4 {[%clk 0:00:46.4]} 43... Rb2 {[%clk 0:00:18.5]} 44. Rd4 {[%clk
0:00:47]} 44... Ke7 {[%clk 0:00:19.1]} 45. Kd5 {[%clk 0:00:47]} 45... Rc2 {[%clk
0:00:17.8]} 46. Rc4 {[%clk 0:00:44.1]} 46... Rf2 {[%clk 0:00:18.1]} 47. Rc7+
{[%clk 0:00:43.7]} 47... Kd8 {[%clk 0:00:18.9]} 48. Rf7 {[%clk 0:00:44.8]} 48...
Rc2 {[%clk 0:00:17.1]} 49. Rf6 {[%clk 0:00:39.1]} 49... b5 {[%clk 0:00:18.5]}
50. Rxh6 {[%clk 0:00:37.4]} 50... Rc4 {[%clk 0:00:19.9]} 51. Rg6 {[%clk
0:00:36.3]} 51... Rxb4 {[%clk 0:00:21.1]} 52. Rxg5 {[%clk 0:00:34.2]} 52... Rb1
{[%clk 0:00:22.7]} 53. Kd6 {[%clk 0:00:32.7]} 53... Ke8 {[%clk 0:00:23.3]} 54.
h4 {[%clk 0:00:26.3]} 54... b4 {[%clk 0:00:22.8]} 55. Rb5 {[%clk 0:00:27.1]}
55... Rf1 {[%clk 0:00:20.7]} 56. Rxb4 {[%clk 0:00:25.3]} 56... Rxf3 {[%clk
0:00:21.5]} 57. Ke5 {[%clk 0:00:24.4]} 57... Kf7 {[%clk 0:00:22]} 58. Rf4+
{[%clk 0:00:24.9]} 1-0

[Event "*** Titled Tuesday Blitz"]
[Site "Chess.com"]
[Date "2019.02.05"]
[Round "3"]
[White "volcanoexplorer"]
[Black "ZeroRealtorFade"]
[Result "1/2-1/2"]
[WhiteElo "2357"]
[BlackElo "2250"]
[TimeControl "180+2"]
[EndTime "13:37:14 PST"]
[Termination "Game drawn by repetition"]

1. e4 {[%clk 0:03:01.9]} 1... Nc6 {[%clk 0:03:00.4]} 2. Nf3 {[%clk 0:03:01.7]}
2... d6 {[%clk 0:03:01.3]} 3. d4 {[%clk 0:03:02]} 3... Nf6 {[%clk 0:03:02.1]} 4.
Nc3 {[%clk 0:03:02]} 4... g6 {[%clk 0:03:03.3]} 5. g3 {[%clk 0:03:02.5]} 5...
Bg7 {[%clk 0:03:04.2]} 6. Bg2 {[%clk 0:03:03.6]} 6... O-O {[%clk 0:03:05.5]} 7.
O-O {[%clk 0:03:03.8]} 7... e5 {[%clk 0:03:06.5]} 8. d5 {[%clk 0:02:48.1]} 8...
Ne7 {[%clk 0:03:07.1]} 9. h3 {[%clk 0:02:49.1]} 9... Nd7 {[%clk 0:03:07.8]} 10.
Nh4 {[%clk 0:02:30.5]} 10... Bf6 {[%clk 0:02:56.9]} 11. Bh6 {[%clk 0:02:29.5]}
11... Re8 {[%clk 0:02:53.2]} 12. Nf3 {[%clk 0:02:21.9]} 12... Bg7 {[%clk
0:02:50.9]} 13. Qd2 {[%clk 0:02:22.2]} 13... Kh8 {[%clk 0:02:30.7]} 14. Ng5
{[%clk 0:01:47.6]} 14... Rf8 {[%clk 0:02:25.7]} 15. Bxg7+ {[%clk 0:01:47.4]}
15... Kxg7 {[%clk 0:02:27.5]} 16. f4 {[%clk 0:01:48.6]} 16... h6 {[%clk
0:02:20]} 17. Nf3 {[%clk 0:01:49.2]} 17... f6 {[%clk 0:02:09.6]} 18. fxe5 {[%clk
0:01:44.7]} 18... fxe5 {[%clk 0:01:58.8]} 19. Nh4 {[%clk 0:01:42.6]} 19... Nf6
{[%clk 0:01:51.4]} 20. g4 {[%clk 0:01:37.1]} 20... g5 {[%clk 0:01:38.8]} 21.
Nf5+ {[%clk 0:01:32.8]} 21... Bxf5 {[%clk 0:01:39.3]} 22. exf5 {[%clk
0:01:27.4]} 22... Qd7 {[%clk 0:01:37.9]} 23. h4 {[%clk 0:01:07.9]} 23... gxh4
{[%clk 0:01:34.7]} 24. g5 {[%clk 0:01:07.5]} 24... hxg5 {[%clk 0:01:35.6]} 25.
Qxg5+ {[%clk 0:01:07.3]} 25... Kf7 {[%clk 0:01:36.6]} 26. Qxh4 {[%clk
0:00:45.9]} 26... Rh8 {[%clk 0:01:29.7]} 27. Qg5 {[%clk 0:00:30.8]} 27... Rag8
{[%clk 0:01:26.5]} 28. Qe3 {[%clk 0:00:31.7]} 28... Nxf5 {[%clk 0:00:41.7]} 29.
Qf3 {[%clk 0:00:15.9]} 29... Rg5 {[%clk 0:00:32.3]} 30. Ne4 {[%clk 0:00:16.4]}
30... Nxe4 {[%clk 0:00:31.7]} 31. Qxe4 {[%clk 0:00:17.3]} 31... Rhg8 {[%clk
0:00:28]} 32. Rf2 {[%clk 0:00:18.2]} 32... Ke7 {[%clk 0:00:28.6]} 33. Raf1
{[%clk 0:00:18.8]} 33... Qb5 {[%clk 0:00:14.4]} 34. Rxf5 {[%clk 0:00:08.5]}
34... Rxg2+ {[%clk 0:00:14.7]} 35. Qxg2 {[%clk 0:00:09.2]} 35... Rxg2+ {[%clk
0:00:16.6]} 36. Kxg2 {[%clk 0:00:10.8]} 36... Qxd5+ {[%clk 0:00:17.8]} 37. R1f3
{[%clk 0:00:10.8]} 37... Qxa2 {[%clk 0:00:18.1]} 38. Rb3 {[%clk 0:00:09.4]}
38... b6 {[%clk 0:00:16.3]} 39. Rf2 {[%clk 0:00:07.8]} 39... Qb1 {[%clk
0:00:16.2]} 40. Rg3 {[%clk 0:00:06.5]} 40... Kd7 {[%clk 0:00:14.4]} 41. Rg7+
{[%clk 0:00:07.6]} 41... Ke6 {[%clk 0:00:10.5]} 42. b3 {[%clk 0:00:09.5]} 42...
c5 {[%clk 0:00:06.8]} 43. Rgf7 {[%clk 0:00:09.6]} 43... Qd1 {[%clk 0:00:05.1]}
44. c4 {[%clk 0:00:08.7]} 44... Qg4+ {[%clk 0:00:05.7]} 45. Kf1 {[%clk
0:00:09.9]} 45... Qd1+ {[%clk 0:00:05.6]} 46. Kg2 {[%clk 0:00:11]} 46... Qg4+
{[%clk 0:00:06.4]} 47. Kf1 {[%clk 0:00:11.9]} 47... Qg5 {[%clk 0:00:06.6]} 48.
Rf8 {[%clk 0:00:12.4]} 48... Qc1+ {[%clk 0:00:06]} 49. Kg2 {[%clk 0:00:13.3]}
49... Qg5+ {[%clk 0:00:06.8]} 50. Kf1 {[%clk 0:00:14]} 50... Qc1+ {[%clk
0:00:07.4]} 51. Kg2 {[%clk 0:00:15.3]} 51... Qg5+ {[%clk 0:00:07.9]} 52. Kf1
{[%clk 0:00:15.5]} 1/2-1/2

[Event "*** Titled Tuesday Blitz"]
[Site "Chess.com"]
[Date "2019.02.05"]
[Round "3"]
[White "HrvojeZagreb"]
[Black "flomarechot"]
[Result "1-0"]
[WhiteElo "2123"]
[BlackElo "2054"]
[TimeControl "180+2"]
[EndTime "13:37:17 PST"]
[Termination "HrvojeZagreb won by resignation"]

1. d4 {[%clk 0:03:00.5]} 1... Nf6 {[%clk 0:03:00.3]} 2. Bf4 {[%clk 0:02:56.5]}
2... g6 {[%clk 0:03:01.3]} 3. Nc3 {[%clk 0:02:56.8]} 3... Bg7 {[%clk 0:03:03.2]}
4. e4 {[%clk 0:02:58.1]} 4... d6 {[%clk 0:02:59.4]} 5. Qd2 {[%clk 0:02:59.3]}
5... Nbd7 {[%clk 0:02:58.9]} 6. O-O-O {[%clk 0:02:34.8]} 6... c5 {[%clk
0:02:41.7]} 7. d5 {[%clk 0:02:34.9]} 7... a6 {[%clk 0:02:40.2]} 8. Bh6 {[%clk
0:02:31.4]} 8... Bxh6 {[%clk 0:02:36]} 9. Qxh6 {[%clk 0:02:33.3]} 9... b5 {[%clk
0:02:36.7]} 10. f3 {[%clk 0:02:33.8]} 10... b4 {[%clk 0:02:34.5]} 11. Na4 {[%clk
0:02:17.4]} 11... a5 {[%clk 0:02:17]} 12. Bb5 {[%clk 0:02:06.1]} 12... Ba6
{[%clk 0:02:17.1]} 13. Bxd7+ {[%clk 0:02:05.6]} 13... Nxd7 {[%clk 0:02:11.1]}
14. Qg7 {[%clk 0:01:57.4]} 14... Rf8 {[%clk 0:02:11.4]} 15. e5 {[%clk
0:01:53.2]} 15... Nxe5 {[%clk 0:01:55.2]} 16. Nxc5 {[%clk 0:01:49.8]} 16... Bc4
{[%clk 0:01:08]} 17. b3 {[%clk 0:01:10.3]} 17... Bb5 {[%clk 0:01:08.3]} 18. Nh3
{[%clk 0:01:08.2]} 18... Qc7 {[%clk 0:01:01]} 19. f4 {[%clk 0:00:49.4]} 19...
Ng4 {[%clk 0:00:37.5]} 20. Ne4 {[%clk 0:00:23.6]} 20... Ne3 {[%clk 0:00:37.8]}
21. Rd2 {[%clk 0:00:22.5]} 21... Bd3 {[%clk 0:00:37.9]} 22. Nf6+ {[%clk
0:00:15]} 22... exf6 {[%clk 0:00:38.4]} 23. Re1 {[%clk 0:00:15.8]} 23... Kd7
{[%clk 0:00:29.1]} 24. Rxe3 {[%clk 0:00:15.7]} 24... Bf5 {[%clk 0:00:17.7]} 25.
Qxf6 {[%clk 0:00:16.4]} 25... Rae8 {[%clk 0:00:18]} 26. Rxe8 {[%clk 0:00:13.6]}
26... Rxe8 {[%clk 0:00:19.2]} 27. Qxf7+ {[%clk 0:00:13.2]} 27... Re7 {[%clk
0:00:20.3]} 28. Qf6 {[%clk 0:00:12.9]} 28... Re1+ {[%clk 0:00:19.2]} 29. Kb2
{[%clk 0:00:14.1]} 29... a4 {[%clk 0:00:16.8]} 30. bxa4 {[%clk 0:00:14.3]} 30...
Qc5 {[%clk 0:00:13.9]} 31. Ng5 {[%clk 0:00:14.9]} 31... Rd1 {[%clk 0:00:09]} 32.
Qf7+ {[%clk 0:00:12.1]} 32... Kd8 {[%clk 0:00:08.6]} 33. Ne6+ {[%clk 0:00:12.6]}
33... Bxe6 {[%clk 0:00:08.9]} 34. Qf6+ {[%clk 0:00:12.4]} 34... Kc7 {[%clk
0:00:09.6]} 35. Rxd1 {[%clk 0:00:09.3]} 35... Bxd5 {[%clk 0:00:10]} 36. Qe7+
{[%clk 0:00:09.3]} 36... Kc6 {[%clk 0:00:09.4]} 37. Qf6 {[%clk 0:00:10.2]} 37...
Be4 {[%clk 0:00:08.5]} 38. Rd2 {[%clk 0:00:11.2]} 38... Bf5 {[%clk 0:00:07.5]}
39. Qd4 {[%clk 0:00:12.7]} 39... Qa5 {[%clk 0:00:04.9]} 40. c3 {[%clk
0:00:13.5]} 40... bxc3+ {[%clk 0:00:04.4]} 41. Qxc3+ {[%clk 0:00:14.7]} 41...
Qxc3+ {[%clk 0:00:06.3]} 42. Kxc3 {[%clk 0:00:16.6]} 42... Kc5 {[%clk
0:00:07.1]} 43. Rb2 {[%clk 0:00:17.7]} 43... d5 {[%clk 0:00:08.1]} 44. a5 {[%clk
0:00:19.1]} 44... d4+ {[%clk 0:00:09.6]} 45. Kd2 {[%clk 0:00:20.6]} 45... Be4
{[%clk 0:00:10.8]} 46. a6 {[%clk 0:00:21.7]} 46... Bxg2 {[%clk 0:00:12]} 47. a7
{[%clk 0:00:23.2]} 47... g5 {[%clk 0:00:10.7]} 48. Rb8 {[%clk 0:00:25.1]} 48...
gxf4 {[%clk 0:00:11.3]} 49. a8=Q {[%clk 0:00:27]} 49... Bxa8 {[%clk 0:00:12.5]}
50. Rxa8 {[%clk 0:00:28.2]} 50... f3 {[%clk 0:00:14.1]} 51. Rf8 {[%clk
0:00:29.1]} 51... Kb4 {[%clk 0:00:14.8]} 52. Rxf3 {[%clk 0:00:30.2]} 52... Kc4
{[%clk 0:00:15.7]} 53. Rb3 {[%clk 0:00:31.2]} 53... h5 {[%clk 0:00:16.9]} 54.
Rb1 {[%clk 0:00:32.8]} 54... h4 {[%clk 0:00:18.4]} 55. a4 {[%clk 0:00:34.4]}
55... h3 {[%clk 0:00:19.8]} 56. a5 {[%clk 0:00:36.3]} 56... d3 {[%clk
0:00:21.3]} 57. a6 {[%clk 0:00:38.2]} 57... Kd4 {[%clk 0:00:22.9]} 58. a7 {[%clk
0:00:40.1]} 58... Kc4 {[%clk 0:00:24.6]} 59. a8=Q {[%clk 0:00:42]} 59... Kd4
{[%clk 0:00:26.5]} 60. Qf3 {[%clk 0:00:42.6]} 60... Kc4 {[%clk 0:00:28.4]} 61.
Qxh3 {[%clk 0:00:43.7]} 61... Kd4 {[%clk 0:00:30.3]} 62. Qxd3+ {[%clk
0:00:44.9]} 62... Kc5 {[%clk 0:00:32.2]} 63. Rb5+ {[%clk 0:00:45.5]} 63... Kc6
{[%clk 0:00:33.3]} 64. Qd5+ {[%clk 0:00:46.8]} 64... Kc7 {[%clk 0:00:34.8]} 65.
Rb7+ {[%clk 0:00:48.5]} 1-0

[Event "*** Titled Tuesday Blitz"]
[Site "Chess.com"]
[Date "2019.02.05"]
[Round "3"]
[White "masrahi"]
[Black "ecwinslow"]
[Result "0-1"]
[WhiteElo "1858"]
[BlackElo "2004"]
[TimeControl "180+2"]
[EndTime "13:37:17 PST"]
[Termination "ecwinslow won by checkmate"]

1. c4 {[%clk 0:03:01.6]} 1... Nf6 {[%clk 0:00:42.3]} 2. Nc3 {[%clk 0:02:56.2]}
2... g6 {[%clk 0:00:43.3]} 3. g3 {[%clk 0:02:54.4]} 3... Bg7 {[%clk 0:00:43.3]}
4. Bg2 {[%clk 0:02:55.2]} 4... O-O {[%clk 0:00:44.8]} 5. a3 {[%clk 0:02:55.5]}
5... d6 {[%clk 0:00:45.1]} 6. Rb1 {[%clk 0:02:55.9]} 6... e5 {[%clk 0:00:45.8]}
7. d3 {[%clk 0:02:53.5]} 7... Nh5 {[%clk 0:00:45.9]} 8. e3 {[%clk 0:02:39.7]}
8... f5 {[%clk 0:00:45.1]} 9. Nge2 {[%clk 0:02:39.4]} 9... Nc6 {[%clk
0:00:38.6]} 10. O-O {[%clk 0:02:39.4]} 10... Kh8 {[%clk 0:00:33.1]} 11. f4
{[%clk 0:02:39.6]} 11... g5 {[%clk 0:00:31.4]} 12. d4 {[%clk 0:02:12.7]} 12...
gxf4 {[%clk 0:00:21.3]} 13. exf4 {[%clk 0:02:05.4]} 13... exd4 {[%clk
0:00:21.6]} 14. Nb5 {[%clk 0:01:53.1]} 14... Nf6 {[%clk 0:00:20.8]} 15. Nbxd4
{[%clk 0:01:49]} 15... Nxd4 {[%clk 0:00:21.7]} 16. Nxd4 {[%clk 0:01:50.9]} 16...
Ne4 {[%clk 0:00:22.1]} 17. Nf3 {[%clk 0:01:21.3]} 17... c6 {[%clk 0:00:22.6]}
18. Ng5 {[%clk 0:01:10]} 18... Nxg5 {[%clk 0:00:22.5]} 19. fxg5 {[%clk
0:01:11.8]} 19... Be6 {[%clk 0:00:22.8]} 20. b3 {[%clk 0:01:06]} 20... Rc8
{[%clk 0:00:23.4]} 21. Bf4 {[%clk 0:00:53]} 21... Be5 {[%clk 0:00:24.1]} 22. Qd2
{[%clk 0:00:41.6]} 22... Bxf4 {[%clk 0:00:20.4]} 23. Qxf4 {[%clk 0:00:41.7]}
23... Qb6+ {[%clk 0:00:20.7]} 24. Kh1 {[%clk 0:00:42.1]} 24... Rcd8 {[%clk
0:00:21.6]} 25. Rfe1 {[%clk 0:00:41.6]} 25... Bc8 {[%clk 0:00:21.6]} 26. g6
{[%clk 0:00:39.1]} 26... Qc7 {[%clk 0:00:19]} 27. gxh7 {[%clk 0:00:31.1]} 27...
Qxh7 {[%clk 0:00:18.4]} 28. Re3 {[%clk 0:00:30.3]} 28... Qg7 {[%clk 0:00:15.3]}
29. Rbe1 {[%clk 0:00:29.9]} 29... Bd7 {[%clk 0:00:13.4]} 30. Re7 {[%clk
0:00:27]} 30... Qg6 {[%clk 0:00:13.9]} 31. Qh4+ {[%clk 0:00:27]} 31... Kg8
{[%clk 0:00:14.7]} 32. Qf4 {[%clk 0:00:20.1]} 32... Rde8 {[%clk 0:00:14.2]} 33.
b4 {[%clk 0:00:21.4]} 33... Rxe7 {[%clk 0:00:14.8]} 34. Rxe7 {[%clk 0:00:23.1]}
34... Bc8 {[%clk 0:00:12.6]} 35. Bh3 {[%clk 0:00:23.9]} 35... Re8 {[%clk
0:00:11.5]} 36. Rxe8+ {[%clk 0:00:23.8]} 36... Qxe8 {[%clk 0:00:12.7]} 37. Qg5+
{[%clk 0:00:25.4]} 37... Kf8 {[%clk 0:00:13.8]} 38. Bxf5 {[%clk 0:00:25.6]}
38... Qe1+ {[%clk 0:00:13.5]} 39. Kg2 {[%clk 0:00:27.1]} 39... Qe2+ {[%clk
0:00:14.3]} 40. Kh3 {[%clk 0:00:27.9]} 40... Qf1+ {[%clk 0:00:13.4]} 41. Kh4
{[%clk 0:00:29]} 41... Qxf5 {[%clk 0:00:14.1]} 42. Qh6+ {[%clk 0:00:30.5]} 42...
Kf7 {[%clk 0:00:15.3]} 43. Qh8 {[%clk 0:00:26.3]} 43... Qf6+ {[%clk 0:00:15.7]}
44. Qxf6+ {[%clk 0:00:25.7]} 44... Kxf6 {[%clk 0:00:17.6]} 45. Kh5 {[%clk
0:00:25.1]} 45... d5 {[%clk 0:00:18.7]} 46. cxd5 {[%clk 0:00:25.4]} 46... cxd5
{[%clk 0:00:19.2]} 47. g4 {[%clk 0:00:27.3]} 47... d4 {[%clk 0:00:20]} 48. g5+
{[%clk 0:00:29.2]} 48... Ke5 {[%clk 0:00:20.1]} 49. Kh6 {[%clk 0:00:30]} 49...
d3 {[%clk 0:00:20.6]} 50. g6 {[%clk 0:00:29.7]} 50... d2 {[%clk 0:00:21.8]} 51.
g7 {[%clk 0:00:30.8]} 51... Be6 {[%clk 0:00:22.6]} 52. Kg5 {[%clk 0:00:31.4]}
52... d1=Q {[%clk 0:00:23.5]} 53. h4 {[%clk 0:00:33.3]} 53... Qg4+ {[%clk
0:00:22.2]} 54. Kh6 {[%clk 0:00:34.6]} 54... Kf6 {[%clk 0:00:23.2]} 55. g8=Q
{[%clk 0:00:35]} 55... Qxg8 {[%clk 0:00:24.1]} 56. h5 {[%clk 0:00:36.6]} 56...
Qg7# {[%clk 0:00:25]} 0-1